[Event "Titled Tuesday Blitz June 6 Early 2023"]
[White "Palacio,Igor Da Paz"]
[Black "Mrithyunjay Mahadevan"]
[WhiteFideId "2121140"]
[BlackFideId "45003521"]
[WhiteElo "2126"]
[BlackElo "1626"]
[Result "1-0"]
[Round "2"]
[TimeControl "180+2"]
[Date "2023.06.06"]
[WhiteClock "0:01:39"]
[BlackClock "0:02:26"]
[Board "165"]

1. e4 {[%clk 0:02:56]}  e5 {[%clk 0:02:57]} 2. Nf3 {[%clk 0:02:54]}  Nc6 {[%clk 0:02:56]} 3. Bb5 {[%clk 0:02:53]}  a6 {[%clk 0:02:54]} 4. Ba4 {[%clk 0:02:53]}  b5 {[%clk 0:02:53]} 5. Bb3 {[%clk 0:02:53]}  Bc5 {[%clk 0:02:51]} 6. Qe2 {[%clk 0:02:48]}  Nf6 {[%clk 0:02:50]} 7. a4 {[%clk 0:02:46]}  b4 {[%clk 0:02:47]} 8. Bxf7+ {[%clk 0:02:46]}  Kxf7 {[%clk 0:02:44]} 9. Qc4+ {[%clk 0:02:46]}  d5 {[%clk 0:02:41]} 10. Qxc5 {[%clk 0:02:46]}  Qd6 {[%clk 0:02:41]} 11. Qxc6 {[%clk 0:02:43]}  Qxc6 {[%clk 0:02:39]} 12. Nxe5+ {[%clk 0:02:43]}  Ke8 {[%clk 0:02:39]} 13. Nxc6 {[%clk 0:02:43]}  dxe4 {[%clk 0:02:39]} 14. Nxb4 {[%clk 0:02:31]}  c5 {[%clk 0:02:39]} 15. Na2 {[%clk 0:02:19]}  Bb7 {[%clk 0:02:37]} 16. O-O {[%clk 0:02:16]}  Kd7 {[%clk 0:02:33]} 17. Nac3 {[%clk 0:02:14]}  Rhf8 {[%clk 0:02:32]} 18. d3 {[%clk 0:02:07]}  exd3 {[%clk 0:02:33]} 19. cxd3 {[%clk 0:02:06]}  Rae8 {[%clk 0:02:33]} 20. Be3 {[%clk 0:02:05]}  Kc6 {[%clk 0:02:33]} 21. Ne4 {[%clk 0:01:57]}  Nxe4 {[%clk 0:02:32]} 22. dxe4 {[%clk 0:01:58]}  Rxe4 {[%clk 0:02:32]} 23. Nd2 {[%clk 0:01:55]}  Re5 {[%clk 0:02:31]} 24. Nc4 {[%clk 0:01:52]}  Re4 {[%clk 0:02:28]} 25. Na5+ {[%clk 0:01:51]}  Kc7 {[%clk 0:02:28]} 26. Nxb7 {[%clk 0:01:52]}  Kxb7 {[%clk 0:02:28]} 27. Bxc5 {[%clk 0:01:50]}  Rff4 {[%clk 0:02:28]} 28. Be3 {[%clk 0:01:44]}  Rh4 {[%clk 0:02:28]} 29. g3 {[%clk 0:01:44]}  Rh5 {[%clk 0:02:27]} 30. b3 {[%clk 0:01:39]}  Kc6 {[%clk 0:02:26]} 31. Rac1+ {[%clk 0:01:39]} 1-0


[Site "https://www.chess.com"]

[Event "Titled Tuesday Blitz June 6 Early 2023"]
[White "Vyatkin, Dmitry"]
[Black "Kuzmin, Ilya"]
[WhiteFideId "4171900"]
[BlackFideId "4153863"]
[WhiteElo "2279"]
[BlackElo "2093"]
[Result "1-0"]
[Round "2"]
[TimeControl "180+2"]
[Date "2023.06.06"]
[WhiteClock "0:01:18"]
[BlackClock "0:01:16"]
[Board "166"]

1. d4 {[%clk 0:03:00]}  Nf6 {[%clk 0:02:59]} 2. c4 {[%clk 0:02:59]}  c5 {[%clk 0:03:00]} 3. d5 {[%clk 0:02:58]}  b5 {[%clk 0:03:00]} 4. cxb5 {[%clk 0:02:59]}  a6 {[%clk 0:03:00]} 5. bxa6 {[%clk 0:02:59]}  e6 {[%clk 0:03:00]} 6. Nc3 {[%clk 0:02:56]}  exd5 {[%clk 0:03:00]} 7. Nxd5 {[%clk 0:02:54]}  Nxd5 {[%clk 0:03:01]} 8. Qxd5 {[%clk 0:02:54]}  Nc6 {[%clk 0:03:02]} 9. e4 {[%clk 0:02:47]}  Be7 {[%clk 0:03:02]} 10. Nf3 {[%clk 0:02:41]}  O-O {[%clk 0:03:02]} 11. Bc4 {[%clk 0:02:37]}  Bxa6 {[%clk 0:02:59]} 12. Bxa6 {[%clk 0:02:36]}  Qa5+ {[%clk 0:02:59]} 13. Qd2 {[%clk 0:02:29]}  Qxa6 {[%clk 0:02:58]} 14. Qe2 {[%clk 0:02:29]}  Nb4 {[%clk 0:02:56]} 15. Qxa6 {[%clk 0:02:27]}  Rxa6 {[%clk 0:02:56]} 16. Ke2 {[%clk 0:02:20]}  Nc2 {[%clk 0:02:50]} 17. Rb1 {[%clk 0:02:19]}  Rxa2 {[%clk 0:02:44]} 18. Bd2 {[%clk 0:02:07]}  Bf6 {[%clk 0:02:38]} 19. e5 {[%clk 0:01:58]}  Re8 {[%clk 0:02:34]} 20. Kd3 {[%clk 0:01:57]}  Na3 {[%clk 0:02:05]} 21. bxa3 {[%clk 0:01:28]}  Rxa3+ {[%clk 0:02:04]} 22. Bc3 {[%clk 0:01:28]}  Bd8 {[%clk 0:01:53]} 23. Ra1 {[%clk 0:01:28]}  Rxa1 {[%clk 0:01:40]} 24. Rxa1 {[%clk 0:01:28]}  g5 {[%clk 0:01:37]} 25. h3 {[%clk 0:01:28]}  h5 {[%clk 0:01:37]} 26. g4 {[%clk 0:01:28]}  hxg4 {[%clk 0:01:37]} 27. hxg4 {[%clk 0:01:28]}  Kh7 {[%clk 0:01:37]} 28. Ra8 {[%clk 0:01:25]}  Rg8 {[%clk 0:01:32]} 29. Bd2 {[%clk 0:01:20]}  Re8 {[%clk 0:01:16]} 30. Bxg5 {[%clk 0:01:18]} 1-0


[Site "https://www.chess.com"]

[Event "Titled Tuesday Blitz June 6 Early 2023"]
[White "Orujov2008"]
[Black "Rodriguez Polo, Mateo"]
[BlackFideId "24509396"]
[WhiteElo "2486"]
[BlackElo "2117"]
[Result "1-0"]
[Round "2"]
[TimeControl "180+2"]
[Date "2023.06.06"]
[WhiteClock "0:00:54"]
[BlackClock "0:00:02"]
[Board "167"]

1. e4 {[%clk 0:03:00]}  e6 {[%clk 0:02:46]} 2. d4 {[%clk 0:03:00]}  d5 {[%clk 0:02:46]} 3. Nd2 {[%clk 0:03:01]}  Nf6 {[%clk 0:02:45]} 4. e5 {[%clk 0:03:01]}  Nfd7 {[%clk 0:02:46]} 5. Bd3 {[%clk 0:03:02]}  c5 {[%clk 0:02:46]} 6. c3 {[%clk 0:03:02]}  Nc6 {[%clk 0:02:46]} 7. Ne2 {[%clk 0:03:02]}  cxd4 {[%clk 0:02:46]} 8. cxd4 {[%clk 0:03:02]}  f6 {[%clk 0:02:47]} 9. exf6 {[%clk 0:03:00]}  Nxf6 {[%clk 0:02:48]} 10. Nf3 {[%clk 0:03:01]}  Bd6 {[%clk 0:02:48]} 11. O-O {[%clk 0:03:01]}  Qc7 {[%clk 0:02:47]} 12. Nc3 {[%clk 0:02:56]}  a6 {[%clk 0:02:46]} 13. Re1 {[%clk 0:02:51]}  O-O {[%clk 0:02:44]} 14. Qe2 {[%clk 0:02:51]}  Bd7 {[%clk 0:02:34]} 15. Bd2 {[%clk 0:02:51]}  Rae8 {[%clk 0:02:30]} 16. Rac1 {[%clk 0:02:50]}  Qb6 {[%clk 0:02:11]} 17. Na4 {[%clk 0:02:49]}  Qa7 {[%clk 0:02:06]} 18. Bc3 {[%clk 0:02:33]}  b5 {[%clk 0:01:49]} 19. Nc5 {[%clk 0:02:32]}  Bc8 {[%clk 0:01:49]} 20. b4 {[%clk 0:02:29]}  Qf7 {[%clk 0:00:37]} 21. Ne5 {[%clk 0:02:24]}  Qc7 {[%clk 0:00:23]} 22. f4 {[%clk 0:02:16]}  Nd7 {[%clk 0:00:16]} 23. Bb2 {[%clk 0:01:45]}  Rxf4 {[%clk 0:00:13]} 24. Nxc6 {[%clk 0:01:22]}  Qxc6 {[%clk 0:00:12]} 25. Nxe6 {[%clk 0:01:22]}  Qb6 {[%clk 0:00:11]} 26. Bxh7+ {[%clk 0:01:15]}  Kh8 {[%clk 0:00:11]} 27. Bg6 {[%clk 0:00:53]}  Re7 {[%clk 0:00:02]} 28. Qh5+ {[%clk 0:00:53]}  Kg8 {[%clk 0:00:02]} 29. Qh7# {[%clk 0:00:54]} 1-0


[Site "https://www.chess.com"]

[Event "Titled Tuesday Blitz June 6 Early 2023"]
[White "Martin, Lewis"]
[Black "Turzo, Attila"]
[WhiteFideId "410551"]
[BlackFideId "704954"]
[WhiteElo "2145"]
[BlackElo "2479"]
[Result "0-1"]
[Round "2"]
[TimeControl "180+2"]
[Date "2023.06.06"]
[WhiteClock "0:00:12"]
[BlackClock "0:00:11"]
[Board "169"]

1. e4 {[%clk 0:03:00]}  g6 {[%clk 0:02:55]} 2. d4 {[%clk 0:02:59]}  Bg7 {[%clk 0:02:54]} 3. Nf3 {[%clk 0:03:00]}  d6 {[%clk 0:02:54]} 4. Nc3 {[%clk 0:02:57]}  Nf6 {[%clk 0:02:54]} 5. Bc4 {[%clk 0:02:51]}  O-O {[%clk 0:02:48]} 6. Qe2 {[%clk 0:02:47]}  c6 {[%clk 0:02:36]} 7. a4 {[%clk 0:02:46]}  d5 {[%clk 0:02:36]} 8. Bb3 {[%clk 0:02:41]}  Bg4 {[%clk 0:02:23]} 9. e5 {[%clk 0:02:32]}  Nfd7 {[%clk 0:02:23]} 10. h3 {[%clk 0:02:26]}  Bxf3 {[%clk 0:02:23]} 11. Qxf3 {[%clk 0:02:26]}  e6 {[%clk 0:02:23]} 12. Ne2 {[%clk 0:02:19]}  Qb6 {[%clk 0:02:13]} 13. O-O {[%clk 0:02:14]}  c5 {[%clk 0:02:13]} 14. a5 {[%clk 0:02:03]}  Qb4 {[%clk 0:02:06]} 15. Qg3 {[%clk 0:01:29]}  cxd4 {[%clk 0:02:00]} 16. f4 {[%clk 0:01:24]}  Nc6 {[%clk 0:01:55]} 17. Rd1 {[%clk 0:01:19]}  Nxa5 {[%clk 0:01:47]} 18. Bd2 {[%clk 0:01:16]}  Qb5 {[%clk 0:01:22]} 19. Nxd4 {[%clk 0:01:15]}  Qc5 {[%clk 0:01:18]} 20. Bxa5 {[%clk 0:01:14]}  Rfc8 {[%clk 0:01:09]} 21. Kh1 {[%clk 0:01:03]}  b6 {[%clk 0:01:01]} 22. Bc3 {[%clk 0:00:58]}  b5 {[%clk 0:00:58]} 23. Be1 {[%clk 0:00:42]}  Nb6 {[%clk 0:00:51]} 24. Bf2 {[%clk 0:00:40]}  Qb4 {[%clk 0:00:45]} 25. c3 {[%clk 0:00:40]}  Qe7 {[%clk 0:00:42]} 26. Nxb5 {[%clk 0:00:39]}  Rcb8 {[%clk 0:00:38]} 27. Nd6 {[%clk 0:00:36]}  Nc8 {[%clk 0:00:30]} 28. Nxc8 {[%clk 0:00:33]}  Rxc8 {[%clk 0:00:31]} 29. c4 {[%clk 0:00:31]}  dxc4 {[%clk 0:00:30]} 30. Bc2 {[%clk 0:00:31]}  Qb4 {[%clk 0:00:28]} 31. Qc3 {[%clk 0:00:29]}  a5 {[%clk 0:00:26]} 32. Be4 {[%clk 0:00:27]}  Rab8 {[%clk 0:00:25]} 33. Rxa5 {[%clk 0:00:25]}  Qxb2 {[%clk 0:00:23]} 34. Qxb2 {[%clk 0:00:25]}  Rxb2 {[%clk 0:00:24]} 35. Bd4 {[%clk 0:00:24]}  c3 {[%clk 0:00:20]} 36. Rc1 {[%clk 0:00:24]}  Rb4 {[%clk 0:00:20]} 37. Rxc3 {[%clk 0:00:13]}  Rxc3 {[%clk 0:00:11]} 38. Bxc3 {[%clk 0:00:14]}  Rxe4 {[%clk 0:00:11]} 39. Ra8+ {[%clk 0:00:14]}  Bf8 {[%clk 0:00:12]} 40. Bd2 {[%clk 0:00:13]}  Kg7 {[%clk 0:00:11]} 41. Kh2 {[%clk 0:00:12]}  Bc5 {[%clk 0:00:11]} 42. g3 {[%clk 0:00:12]}  Re2+ {[%clk 0:00:11]} 43. Kh1 {[%clk 0:00:12]}  Rxd2 {[%clk 0:00:11]} 0-1


[Site "https://www.chess.com"]

[Event "Titled Tuesday Blitz June 6 Early 2023"]
[White "Bettalli, Francesco"]
[Black "Marchesich, Giovanni"]
[WhiteFideId "2816453"]
[BlackFideId "2824790"]
[WhiteElo "2216"]
[BlackElo "2213"]
[Result "0-1"]
[Round "2"]
[TimeControl "180+2"]
[Date "2023.06.06"]
[WhiteClock "0:02:12"]
[BlackClock "0:00:18"]
[Board "172"]

1. d3 {[%clk 0:02:57]}  d5 {[%clk 0:02:58]} 2. Nf3 {[%clk 0:02:57]}  Nc6 {[%clk 0:02:57]} 3. g3 {[%clk 0:02:58]}  e5 {[%clk 0:02:57]} 4. Bg2 {[%clk 0:02:58]}  f5 {[%clk 0:02:57]} 5. O-O {[%clk 0:02:59]}  Nf6 {[%clk 0:02:57]} 6. Nbd2 {[%clk 0:02:59]}  Bd6 {[%clk 0:02:52]} 7. e4 {[%clk 0:02:59]}  O-O {[%clk 0:02:43]} 8. exd5 {[%clk 0:02:58]}  Nxd5 {[%clk 0:02:42]} 9. Nc4 {[%clk 0:02:59]}  Nb6 {[%clk 0:02:38]} 10. Nxd6 {[%clk 0:02:56]}  cxd6 {[%clk 0:02:38]} 11. c3 {[%clk 0:02:56]}  Be6 {[%clk 0:02:33]} 12. Ng5 {[%clk 0:02:56]}  Qf6 {[%clk 0:02:23]} 13. Nxe6 {[%clk 0:02:54]}  Qxe6 {[%clk 0:02:24]} 14. Qb3 {[%clk 0:02:54]}  Qxb3 {[%clk 0:02:23]} 15. axb3 {[%clk 0:02:55]}  f4 {[%clk 0:02:14]} 16. b4 {[%clk 0:02:53]}  a6 {[%clk 0:01:54]} 17. Bd2 {[%clk 0:02:48]}  g5 {[%clk 0:01:49]} 18. Bf3 {[%clk 0:02:44]}  d5 {[%clk 0:01:30]} 19. Kg2 {[%clk 0:02:41]}  Rad8 {[%clk 0:01:26]} 20. Rad1 {[%clk 0:02:33]}  Rf6 {[%clk 0:01:20]} 21. Rfe1 {[%clk 0:02:33]}  Rfd6 {[%clk 0:01:06]} 22. Bg4 {[%clk 0:02:33]}  Kg7 {[%clk 0:00:55]} 23. h4 {[%clk 0:02:32]}  gxh4 {[%clk 0:00:48]} 24. gxf4 {[%clk 0:02:32]}  Rg6 {[%clk 0:00:46]} 25. Kh3 {[%clk 0:02:31]}  e4 {[%clk 0:00:28]} 26. f5 {[%clk 0:02:30]}  Rxg4 {[%clk 0:00:19]} 27. Kxg4 {[%clk 0:02:30]}  Ne5+ {[%clk 0:00:20]} 28. Kh5 {[%clk 0:02:24]}  Nxd3 {[%clk 0:00:16]} 29. Bh6+ {[%clk 0:02:23]}  Kf7 {[%clk 0:00:15]} 30. Rg1 {[%clk 0:02:19]}  Nd7 {[%clk 0:00:11]} 31. Rg7+ {[%clk 0:02:19]}  Kf6 {[%clk 0:00:06]} 32. Rxh7 {[%clk 0:02:04]}  Kxf5 {[%clk 0:00:06]} 33. Rf7+ {[%clk 0:02:04]}  Ke5 {[%clk 0:00:04]} 34. f3 {[%clk 0:01:59]}  Rh8 {[%clk 0:00:03]} 35. fxe4 {[%clk 0:01:57]}  Nf6+ {[%clk 0:00:03]} 36. Kg6 {[%clk 0:01:57]}  dxe4 {[%clk 0:00:02]} 37. Rxf6 {[%clk 0:01:54]}  Rxh6+ {[%clk 0:00:02]} 38. Kxh6 {[%clk 0:01:55]}  Kxf6 {[%clk 0:00:03]} 39. Kh5 {[%clk 0:01:56]}  h3 {[%clk 0:00:03]} 40. Kg4 {[%clk 0:01:56]}  Nf2+ {[%clk 0:00:03]} 41. Kg3 {[%clk 0:01:56]}  Nxd1 {[%clk 0:00:04]} 42. Kxh3 {[%clk 0:01:57]}  Nxb2 {[%clk 0:00:04]} 43. Kg3 {[%clk 0:01:57]}  Nc4 {[%clk 0:00:05]} 44. Kf4 {[%clk 0:01:58]}  e3 {[%clk 0:00:06]} 45. Kf3 {[%clk 0:01:58]}  Ke5 {[%clk 0:00:06]} 46. Ke2 {[%clk 0:01:59]}  Kd5 {[%clk 0:00:07]} 47. Kd3 {[%clk 0:02:00]}  b5 {[%clk 0:00:08]} 48. Ke2 {[%clk 0:02:00]}  Ke4 {[%clk 0:00:08]} 49. Kd1 {[%clk 0:02:01]}  Kd3 {[%clk 0:00:09]} 50. Ke1 {[%clk 0:02:02]}  Kxc3 {[%clk 0:00:09]} 51. Kd1 {[%clk 0:02:03]}  Kxb4 {[%clk 0:00:10]} 52. Ke1 {[%clk 0:02:04]}  Kc5 {[%clk 0:00:11]} 53. Kd1 {[%clk 0:02:04]}  a5 {[%clk 0:00:11]} 54. Ke1 {[%clk 0:02:05]}  b4 {[%clk 0:00:12]} 55. Kd1 {[%clk 0:02:06]}  a4 {[%clk 0:00:13]} 56. Ke1 {[%clk 0:02:07]}  Nb6 {[%clk 0:00:14]} 57. Kd1 {[%clk 0:02:08]}  Na8 {[%clk 0:00:15]} 58. Ke1 {[%clk 0:02:09]}  Kc4 {[%clk 0:00:16]} 59. Kd1 {[%clk 0:02:10]}  b3 {[%clk 0:00:17]} 60. Ke1 {[%clk 0:02:11]}  a3 {[%clk 0:00:18]} 61. Kd1 {[%clk 0:02:12]} 0-1


[Site "https://www.chess.com"]

[Event "Titled Tuesday Blitz June 6 Early 2023"]
[White "Ljukin, Sergei"]
[Black "Svicevic, Rastko"]
[WhiteFideId "14102200"]
[BlackFideId "916315"]
[WhiteElo "2312"]
[BlackElo "2123"]
[Result "1-0"]
[Round "2"]
[TimeControl "180+2"]
[Date "2023.06.06"]
[WhiteClock "0:00:08"]
[BlackClock "0:00:01"]
[Board "174"]

1. e4 {[%clk 0:03:00]}  c6 {[%clk 0:02:58]} 2. d4 {[%clk 0:03:00]}  d5 {[%clk 0:02:59]} 3. e5 {[%clk 0:03:00]}  c5 {[%clk 0:02:59]} 4. Nf3 {[%clk 0:02:59]}  cxd4 {[%clk 0:02:54]} 5. Nxd4 {[%clk 0:02:59]}  g6 {[%clk 0:02:48]} 6. c4 {[%clk 0:02:54]}  Bg7 {[%clk 0:02:46]} 7. Nc3 {[%clk 0:02:44]}  Bxe5 {[%clk 0:02:37]} 8. cxd5 {[%clk 0:02:42]}  Nf6 {[%clk 0:02:36]} 9. Bc4 {[%clk 0:02:35]}  O-O {[%clk 0:02:34]} 10. Nf3 {[%clk 0:02:33]}  Bxc3+ {[%clk 0:02:30]} 11. bxc3 {[%clk 0:02:33]}  Qc7 {[%clk 0:02:31]} 12. Qd4 {[%clk 0:02:25]}  Rd8 {[%clk 0:02:27]} 13. O-O {[%clk 0:02:14]}  Nc6 {[%clk 0:02:21]} 14. Qh4 {[%clk 0:02:12]}  Na5 {[%clk 0:02:18]} 15. Be2 {[%clk 0:02:00]}  Rxd5 {[%clk 0:02:07]} 16. Bg5 {[%clk 0:01:59]}  Be6 {[%clk 0:01:33]} 17. Bxf6 {[%clk 0:01:47]}  Rh5 {[%clk 0:01:23]} 18. Qd4 {[%clk 0:01:32]}  exf6 {[%clk 0:01:11]} 19. Qxf6 {[%clk 0:01:31]}  Rc8 {[%clk 0:01:06]} 20. Rac1 {[%clk 0:01:24]}  Bc4 {[%clk 0:00:49]} 21. Bxc4 {[%clk 0:01:13]}  Nxc4 {[%clk 0:00:50]} 22. h3 {[%clk 0:01:07]}  Rf5 {[%clk 0:00:50]} 23. Qh4 {[%clk 0:01:02]}  Rxf3 {[%clk 0:00:45]} 24. gxf3 {[%clk 0:00:57]}  Nd2 {[%clk 0:00:46]} 25. Qg3 {[%clk 0:00:51]}  Qc6 {[%clk 0:00:39]} 26. Rfd1 {[%clk 0:00:39]}  Nxf3+ {[%clk 0:00:38]} 27. Kf1 {[%clk 0:00:32]}  Re8 {[%clk 0:00:19]} 28. c4 {[%clk 0:00:23]}  Ne5 {[%clk 0:00:15]} 29. Qg2 {[%clk 0:00:18]}  Qa6 {[%clk 0:00:14]} 30. Qd5 {[%clk 0:00:17]}  Re6 {[%clk 0:00:12]} 31. Re1 {[%clk 0:00:16]}  Qa3 {[%clk 0:00:08]} 32. Kg2 {[%clk 0:00:13]}  Qb2 {[%clk 0:00:05]} 33. Rb1 {[%clk 0:00:12]}  Qc3 {[%clk 0:00:02]} 34. Re3 {[%clk 0:00:10]}  Qc2 {[%clk 0:00:01]} 35. Rbe1 {[%clk 0:00:09]}  Rf6 {[%clk 0:00:01]} 36. R1e2 {[%clk 0:00:08]} 1-0


[Site "https://www.chess.com"]

[Event "Titled Tuesday Blitz June 6 Early 2023"]
[White "Lehtosaari, Mauri"]
[Black "Sailer, Mike"]
[WhiteFideId "501999"]
[BlackFideId "2012901"]
[WhiteElo "2467"]
[BlackElo "2109"]
[Result "1-0"]
[Round "2"]
[TimeControl "180+2"]
[Date "2023.06.06"]
[WhiteClock "0:00:17"]
[BlackClock "0:00:01"]
[Board "176"]

1. d4 {[%clk 0:03:00]}  d5 {[%clk 0:02:32]} 2. Nf3 {[%clk 0:03:00]}  Nf6 {[%clk 0:02:27]} 3. Bg5 {[%clk 0:02:59]}  Bf5 {[%clk 0:02:21]} 4. c4 {[%clk 0:02:54]}  e6 {[%clk 0:02:19]} 5. Nc3 {[%clk 0:02:51]}  Nc6 {[%clk 0:02:19]} 6. e3 {[%clk 0:02:46]}  Bb4 {[%clk 0:02:17]} 7. Qb3 {[%clk 0:02:45]}  a5 {[%clk 0:02:16]} 8. cxd5 {[%clk 0:02:35]}  exd5 {[%clk 0:02:14]} 9. Bb5 {[%clk 0:02:34]}  O-O {[%clk 0:02:09]} 10. O-O {[%clk 0:02:33]}  Bxc3 {[%clk 0:02:09]} 11. bxc3 {[%clk 0:02:28]}  Qd6 {[%clk 0:02:01]} 12. a4 {[%clk 0:02:18]}  Ne4 {[%clk 0:01:58]} 13. Bf4 {[%clk 0:02:18]}  Qe6 {[%clk 0:01:50]} 14. c4 {[%clk 0:02:11]}  Nb4 {[%clk 0:01:41]} 15. Bxc7 {[%clk 0:01:59]}  dxc4 {[%clk 0:01:27]} 16. Bxc4 {[%clk 0:01:55]}  Qe7 {[%clk 0:01:13]} 17. Bg3 {[%clk 0:01:45]}  Nxg3 {[%clk 0:00:54]} 18. hxg3 {[%clk 0:01:44]}  Rac8 {[%clk 0:00:51]} 19. Rac1 {[%clk 0:01:42]}  Rc7 {[%clk 0:00:48]} 20. Ne5 {[%clk 0:01:27]}  Rfc8 {[%clk 0:00:45]} 21. Bxf7+ {[%clk 0:01:20]}  Kh8 {[%clk 0:00:41]} 22. Rxc7 {[%clk 0:01:15]}  Rxc7 {[%clk 0:00:36]} 23. Bd5 {[%clk 0:01:07]}  h6 {[%clk 0:00:34]} 24. g4 {[%clk 0:01:01]}  Bc2 {[%clk 0:00:32]} 25. Qxc2 {[%clk 0:00:36]}  Nxc2 {[%clk 0:00:29]} 26. Ng6+ {[%clk 0:00:36]}  Kh7 {[%clk 0:00:30]} 27. Nxe7 {[%clk 0:00:35]}  Rxe7 {[%clk 0:00:31]} 28. Rc1 {[%clk 0:00:34]}  Nb4 {[%clk 0:00:30]} 29. Bf3 {[%clk 0:00:32]}  Kg6 {[%clk 0:00:30]} 30. Rc5 {[%clk 0:00:32]}  b6 {[%clk 0:00:30]} 31. Rc8 {[%clk 0:00:31]}  Kf6 {[%clk 0:00:22]} 32. Kh2 {[%clk 0:00:31]}  Nd3 {[%clk 0:00:16]} 33. Kg3 {[%clk 0:00:29]}  Re6 {[%clk 0:00:13]} 34. d5 {[%clk 0:00:29]}  Rd6 {[%clk 0:00:12]} 35. e4 {[%clk 0:00:29]}  Ke5 {[%clk 0:00:13]} 36. Re8+ {[%clk 0:00:29]}  Kd4 {[%clk 0:00:12]} 37. Be2 {[%clk 0:00:27]}  Nc5 {[%clk 0:00:06]} 38. f3 {[%clk 0:00:24]}  Nd7 {[%clk 0:00:06]} 39. Rd8 {[%clk 0:00:20]}  Kc5 {[%clk 0:00:04]} 40. Bb5 {[%clk 0:00:18]}  Ne5 {[%clk 0:00:04]} 41. Rxd6 {[%clk 0:00:18]}  Kxd6 {[%clk 0:00:04]} 42. f4 {[%clk 0:00:18]}  Nf7 {[%clk 0:00:03]} 43. Bc6 {[%clk 0:00:18]}  Nd8 {[%clk 0:00:02]} 44. e5+ {[%clk 0:00:18]}  Kc7 {[%clk 0:00:02]} 45. Bb5 {[%clk 0:00:18]}  Nb7 {[%clk 0:00:01]} 46. Kf3 {[%clk 0:00:18]}  Nc5 {[%clk 0:00:01]} 47. Ke3 {[%clk 0:00:18]}  Nb3 {[%clk 0:00:01]} 48. g3 {[%clk 0:00:17]} 1-0


[Site "https://www.chess.com"]

[Event "Titled Tuesday Blitz June 6 Early 2023"]
[White "Bullen, Alex"]
[Black "Hirneise, Jens"]
[WhiteFideId "1801627"]
[BlackFideId "24614734"]
[WhiteElo "2078"]
[BlackElo "2345"]
[Result "0-1"]
[Round "2"]
[TimeControl "180+2"]
[Date "2023.06.06"]
[WhiteClock "0:00:01"]
[BlackClock "0:00:35"]
[Board "177"]

1. a4 {[%clk 0:03:00]}  d5 {[%clk 0:02:51]} 2. Nf3 {[%clk 0:02:59]}  Nf6 {[%clk 0:02:49]} 3. e3 {[%clk 0:02:55]}  e6 {[%clk 0:02:25]} 4. b3 {[%clk 0:02:53]}  Be7 {[%clk 0:02:26]} 5. Bb2 {[%clk 0:02:53]}  O-O {[%clk 0:01:47]} 6. h3 {[%clk 0:02:53]}  c5 {[%clk 0:01:47]} 7. Be2 {[%clk 0:02:51]}  Nc6 {[%clk 0:01:47]} 8. d4 {[%clk 0:02:50]}  cxd4 {[%clk 0:01:46]} 9. Nxd4 {[%clk 0:02:51]}  Bd7 {[%clk 0:01:43]} 10. O-O {[%clk 0:02:46]}  Rc8 {[%clk 0:01:43]} 11. c4 {[%clk 0:02:38]}  dxc4 {[%clk 0:01:42]} 12. Bxc4 {[%clk 0:02:37]}  Na5 {[%clk 0:01:38]} 13. Bd3 {[%clk 0:02:34]}  Nd5 {[%clk 0:01:36]} 14. Nd2 {[%clk 0:01:54]}  Bf6 {[%clk 0:01:30]} 15. Ba3 {[%clk 0:01:42]}  Re8 {[%clk 0:01:27]} 16. Rc1 {[%clk 0:01:36]}  Nc3 {[%clk 0:01:23]} 17. Qf3 {[%clk 0:01:02]}  Bc6 {[%clk 0:01:14]} 18. Nxc6 {[%clk 0:00:59]}  Rxc6 {[%clk 0:01:14]} 19. Bb5 {[%clk 0:00:50]}  Qxd2 {[%clk 0:01:04]} 20. Bxc6 {[%clk 0:00:36]}  Nxc6 {[%clk 0:01:05]} 21. Kh1 {[%clk 0:00:17]}  Qa2 {[%clk 0:00:53]} 22. Bd6 {[%clk 0:00:12]}  Qxb3 {[%clk 0:00:51]} 23. e4 {[%clk 0:00:09]}  Bd4 {[%clk 0:00:44]} 24. Rfd1 {[%clk 0:00:06]}  e5 {[%clk 0:00:41]} 25. Qf5 {[%clk 0:00:01]}  Nxd1 {[%clk 0:00:37]} 26. Qd7 {[%clk 0:00:01]}  Ra8 {[%clk 0:00:35]} 0-1


[Site "https://www.chess.com"]

[Event "Titled Tuesday Blitz June 6 Early 2023"]
[White "Papayan, Oleg"]
[Black "mohsengabr2002"]
[WhiteFideId "4193911"]
[WhiteElo "2167"]
[BlackElo "2234"]
[Result "1-0"]
[Round "2"]
[TimeControl "180+2"]
[Date "2023.06.06"]
[WhiteClock "0:00:58"]
[BlackClock "0:02:13"]
[Board "180"]

1. e4 {[%clk 0:02:53]}  e6 {[%clk 0:02:56]} 2. d4 {[%clk 0:02:53]}  f6 {[%clk 0:02:56]} 3. Nc3 {[%clk 0:02:53]}  g6 {[%clk 0:02:55]} 4. Nf3 {[%clk 0:02:51]}  Nh6 {[%clk 0:02:55]} 5. h4 {[%clk 0:02:51]}  Nf7 {[%clk 0:02:55]} 6. h5 {[%clk 0:02:51]}  g5 {[%clk 0:02:55]} 7. Bc4 {[%clk 0:02:44]}  d6 {[%clk 0:02:54]} 8. Be3 {[%clk 0:02:39]}  c6 {[%clk 0:02:54]} 9. Qd2 {[%clk 0:02:39]}  d5 {[%clk 0:02:53]} 10. Bb3 {[%clk 0:02:30]}  g4 {[%clk 0:02:52]} 11. Nh2 {[%clk 0:02:24]}  f5 {[%clk 0:02:52]} 12. exf5 {[%clk 0:02:09]}  exf5 {[%clk 0:02:53]} 13. O-O-O {[%clk 0:02:09]}  Be7 {[%clk 0:02:52]} 14. f3 {[%clk 0:02:05]}  gxf3 {[%clk 0:02:42]} 15. Nxf3 {[%clk 0:02:04]}  Rg8 {[%clk 0:02:42]} 16. Rde1 {[%clk 0:02:01]}  Kf8 {[%clk 0:02:31]} 17. Bh6+ {[%clk 0:01:57]}  Nxh6 {[%clk 0:02:30]} 18. Qxh6+ {[%clk 0:01:58]}  Rg7 {[%clk 0:02:30]} 19. Kb1 {[%clk 0:01:13]}  Bg5 {[%clk 0:02:29]} 20. Nxg5 {[%clk 0:01:10]}  Qxg5 {[%clk 0:02:30]} 21. Qd6+ {[%clk 0:01:11]}  Re7 {[%clk 0:02:19]} 22. Qd8+ {[%clk 0:01:07]}  Kf7 {[%clk 0:02:18]} 23. Qxc8 {[%clk 0:01:00]}  Nd7 {[%clk 0:02:14]} 24. Qxa8 {[%clk 0:01:00]}  Nf6 {[%clk 0:02:13]} 25. Rxe7+ {[%clk 0:00:58]} 1-0


[Site "https://www.chess.com"]